bitfinex/quotes_ETHUSD_20260209
["timestamp","ask_amount","ask_price","bid_price","bid_amount"]
[1770598151699,1.19921331,2084.7,2083.7,1.19977905]
[1770598151907,1.19919297,2084.8,2083.8,0.99066409]
[1770598152935,1.19919297,2084.8,2083.9,2.19033777]
[1770598153235,10.90013542,2084.9,2084.0,0.99066409]
[1770598154196,0.002,2084.7,2084.0,0.99066409]
[1770598155422,0.002,2084.7,2084.0,2.1902251]
[1770598157708,0.002,2084.7,2084.0,2.19027848]
[1770598158127,0.002,2084.7,2084.1,0.94534964]
[1770598159846,0.002,2084.7,2084.2,1.199501]
[1770598160346,0.002,2084.7,2083.9,0.001]
[1770598160645,0.05519294,2084.5,2083.9,0.001]
[1770598161446,0.05519294,2084.2,2083.9,0.001]
[1770598161629,3.352,2084.1,2083.6,0.001]
[1770598161837,1.19961612,2084.0,2083.6,0.001]
[1770598162382,0.66612722,2083.9,2083.4,0.001]
[1770598162578,0.72132016,2083.9,2083.4,0.001]
[1770598163232,1.19961612,2084.0,2083.4,0.001]
[1770598163443,3.352,2084.1,2083.4,0.001]
[1770598163663,3.352,2084.1,2083.4,0.94634964]
[1770598163868,3.352,2084.1,2083.5,1.199904]
[1770598164028,1.199501,2084.2,2083.5,1.199904]
[1770598164234,3.352,2084.1,2083.4,2.1462694]
[1770598166117,10.27,2084.8,2083.6,0.94534964]
[1770598166238,1.19918632,2084.8,2083.6,0.94534964]
[1770598166844,0.05519294,2084.5,2083.6,0.94534964]
[1770598167050,0.05519294,2084.5,2083.6,0.94634964]
[1770598167243,1.2012135,2084.7,2083.6,0.94634964]
[1770598167450,0.002,2083.7,2083.6,0.94634964]
[1770598168473,0.002,2083.7,2083.6,2.14619605]
[1770598172865,1.19927084,2084.6,2083.8,1.19973126]
[1770598173677,1.19927084,2084.6,2083.8,2.1450809]
[1770598175158,0.002,2084.7,2083.9,0.94534964]
[1770598177286,0.002,2084.7,2084.0,1.19961612]
[1770598177457,0.002,2084.7,2084.1,0.94534964]
[1770598179086,0.002,2084.7,2084.2,0.94534964]
[1770598179488,0.002,2084.7,2084.4,0.94534964]
[1770598180186,0.002,2084.9,2084.4,0.94534964]
[1770598180488,0.002,2085.3,2084.6,0.7]
[1770598180796,0.002,2085.3,2084.7,0.94534964]
[1770598181282,1e-08,2085.6,2084.8,0.94534964]
[1770598181490,1e-08,2085.6,2085.0,0.94534964]
[1770598181656,1e-08,2085.6,2085.2,0.94534964]
[1770598181855,11.76083522,2086.3,2085.3,9.237502]
[1770598181856,10.56249998,2086.3,2085.3,9.237502]
[1770598182060,0.29249998,2086.3,2085.4,0.94534964]
[1770598182982,1.49082646,2086.3,2085.4,0.94534964]
[1770598183361,1.49080237,2086.3,2085.6,0.94534964]
[1770598184689,0.29249998,2086.3,2085.6,0.94534964]
[1770598184912,1.49080081,2086.3,2085.6,0.94534964]
[1770598185063,0.05519294,2086.1,2085.2,0.99878093]
[1770598185394,1.19846596,2086.0,2085.2,0.99878093]
[1770598185573,1.19846596,2086.0,2085.2,2.19766515]
[1770598186188,1.19837903,2086.2,2085.3,0.99878093]
[1770598187689,0.29249998,2086.3,2085.4,1.19881077]
[1770598187884,1.49081626,2086.3,2085.5,0.99878093]
[1770598188218,0.29249998,2086.3,2085.5,0.99878093]
[1770598189920,0.29249998,2086.3,2085.7,0.99878093]
[1770598190131,1.49079385,2086.3,2085.5,1.19872327]
[1770598190289,1.54598679,2086.3,2085.4,2.1975552]
[1770598190632,1.54598679,2086.3,2085.4,1.19877427]
[1770598190799,2.21411401,2086.3,2085.2,4.54987437]
[1770598190993,2.21411401,2086.3,2085.3,1.19884381]
[1770598191692,0.29249998,2086.3,2085.6,0.99878093]
[1770598191889,0.29249998,2086.3,2085.7,1.19863834]
[1770598192309,0.29249998,2086.3,2085.7,2.19741927]
[1770598192499,0.23636631,2086.3,2086.0,0.99878093]
[1770598192704,1.19792905,2087.0,2086.0,0.99878093]
[1770598193515,0.002,2086.1,2086.0,0.99878093]
[1770598193824,0.002,2086.1,2085.9,1.19852341]
[1770598194504,0.002,2086.3,2086.0,0.99878093]
[1770598195199,0.002,2086.3,2085.8,8.14409367]
[1770598195200,0.002,2086.3,2085.8,1.19853927]
[1770598195593,0.002,2086.3,2085.9,0.99878093]
[1770598196201,0.002,2086.3,2085.9,2.19724787]
[1770598197604,0.002,2086.3,2086.0,0.99878093]
[1770598198216,0.002,2086.3,2086.1,1.19840851]
[1770598198505,1.19786653,2087.1,2086.2,0.99878093]
[1770598199836,1.19786653,2087.1,2086.0,8.14363405]
[1770598199837,0.05519294,2087.0,2086.0,1.19842783]
[1770598200207,0.05519294,2086.7,2085.8,5.79305053]
[1770598200413,0.05519294,2086.6,2085.8,1.19855557]
[1770598200718,0.05519294,2086.6,2085.6,1.19869214]
[1770598200719,0.72332016,2086.6,2085.6,1.19869214]
[1770598200918,0.05519294,2086.6,2085.6,4.79476696]
[1770598201116,0.05519294,2086.6,2085.7,1.19859482]
[1770598201334,0.05519294,2086.6,2085.8,1.1985756]
[1770598201542,3.349,2086.7,2085.8,1.1985756]
[1770598201849,1.19794911,2086.9,2085.9,0.99878093]
[1770598202023,1.25314205,2086.9,2085.9,0.99878093]
[1770598202422,1.25314205,2086.9,2085.9,2.19725495]
[1770598204257,1.25314205,2086.9,2085.9,2.19729101]
[1770598205253,0.05519294,2086.6,2085.7,1.19863721]
[1770598205461,0.05519294,2086.5,2085.8,1.19858045]
[1770598205631,0.05519294,2086.5,2085.6,4.54765773]
[1770598205837,0.05519294,2086.5,2085.5,5.7936478]
[1770598206037,0.05519294,2086.4,2086.1,0.001]
[1770598206841,1.19829362,2086.3,2086.1,0.001]
[1770598207232,1.19827583,2086.4,2086.1,0.001]
[1770598209253,4.79279528,2086.5,2086.1,0.001]
[1770598210429,0.05519294,2086.3,2085.9,0.001]
[1770598210656,5.4609225,2086.5,2085.5,1.19874237]
[1770598210929,4.79279528,2086.5,2085.5,1.19874237]
[1770598211558,4.79279528,2086.5,2085.4,0.99878093]
[1770598212346,4.79255364,2086.6,2085.4,0.99878093]
[1770598213661,0.002,2086.7,2085.6,0.99878093]
[1770598213958,0.002,2086.7,2085.8,0.99878093]
[1770598215365,0.002,2086.7,2086.0,0.97800296]
[1770598215538,0.002,2086.7,2086.1,1.19840851]
[1770598216766,0.002,2086.7,2086.1,2.1443569]
[1770598218071,0.002,2086.7,2085.7,4.29494839]
[1770598218275,0.05519294,2086.6,2085.7,5.49354373]
[1770598218469,0.05519294,2086.6,2085.8,1.19856555]
[1770598218963,0.05519294,2086.6,2085.7,4.29494839]
[1770598219551,0.05519294,2086.6,2085.7,5.49357873]
[1770598219767,3.351,2086.7,2085.8,0.94594839]
[1770598219966,1.19812134,2086.6,2086.0,0.001]
[1770598220163,0.002,2086.5,2086.0,0.001]
[1770598223571,0.002,2086.5,2086.0,0.94694839]
[1770598224571,0.002,2086.7,2086.3,0.94594839]
[1770598226182,0.002,2086.9,2086.2,0.94594839]
[1770598226471,0.002,2086.9,2086.4,0.94594839]
[1770598228341,0.002,2086.9,2086.6,0.94594839]
[1770598230960,0.002,2086.9,2086.7,1.19806392]
[1770598231289,0.002,2086.9,2086.7,2.14401231]
[1770598231948,0.002,2087.2,2086.8,0.94594839]
[1770598233382,0.002,2087.2,2086.8,2.1439544]
[1770598233750,0.002,2087.2,2086.9,0.94594839]
[1770598234069,1.47859124,2087.7,2086.9,0.94594839]
[1770598234254,1.4786021,2087.7,2086.9,0.94594839]
[1770598234649,1.53379504,2087.7,2086.9,0.94594839]
[1770598234854,0.05519294,2087.6,2086.6,2.14403755]
[1770598235584,1.19760479,2087.5,2086.7,1.19806228]
[1770598236083,1.19760479,2087.5,2086.7,2.14401067]
[1770598238189,4.79041916,2087.6,2086.7,2.14401067]
[1770598238492,1.19754742,2087.6,2086.7,2.14401067]
[1770598238792,1.19754742,2087.6,2086.7,2.14400429]
[1770598238984,1.19754742,2087.6,2086.8,0.94594839]
[1770598240694,1.19754742,2087.6,2086.9,1.19794911]
[1770598240862,1.19754742,2087.6,2086.8,2.14391691]
[1770598241789,1.19754742,2087.6,2086.9,0.94594839]
[1770598243903,1.19754742,2087.6,2086.7,1.19801936]
[1770598244059,0.72332016,2087.4,2086.3,2.14421015]
[1770598244387,0.72332016,2087.4,2086.4,1.19823519]
[1770598244963,1.19789171,2087.0,2086.4,1.19823519]
[1770598245268,1.19789171,2087.0,2086.5,0.95937686]
[1770598246059,1.19771954,2087.3,2086.5,2.15751877]
[1770598246357,1.19771954,2087.3,2086.6,0.95937686]
[1770598246560,0.72332016,2087.3,2086.6,0.001]
[1770598246758,0.05519294,2087.0,2086.6,0.001]
[1770598247181,0.66812722,2087.1,2086.6,0.001]
[1770598247491,0.72532016,2087.3,2086.6,0.001]
[1770598248474,1.19777692,2087.2,2086.6,0.001]
[1770598249891,0.05519294,2087.0,2086.6,0.001]
[1770598250092,1.19777692,2087.2,2086.6,0.001]
[1770598250280,0.05519294,2087.0,2086.6,0.001]
[1770598251181,1.19794911,2086.9,2086.1,0.001]
[1770598251497,1.19794911,2086.9,2086.1,1.19940685]
[1770598251797,1.19794911,2086.9,2086.2,1.19834876]
[1770598251976,1.19794911,2086.9,2086.3,0.95937686]
[1770598253269,4.79179644,2087.0,2086.3,0.95937686]
[1770598253469,0.72332016,2086.8,2086.1,0.001]
[1770598253667,0.05519294,2086.5,2086.1,0.001]
[1770598254313,0.05519294,2086.5,2085.9,0.001]
[1770598255319,0.05519294,2086.2,2085.8,0.001]
[1770598256482,1.19823619,2086.4,2085.8,0.001]
[1770598256682,0.05519294,2086.2,2085.8,0.001]
[1770598257394,4.79300493,2086.4,2085.8,0.001]
[1770598258009,0.05519294,2086.2,2085.8,0.001]
[1770598259808,4.79300493,2086.4,2085.8,0.001]
[1770598260013,1.19829362,2086.3,2085.8,0.001]
[1770598260615,0.72232016,2085.9,2085.0,0.001]
[1770598260914,0.05519294,2085.2,2084.3,0.95937686]
[1770598261680,0.05519294,2084.9,2084.1,0.001]
[1770598262031,1.19892576,2085.2,2084.2,0.95937686]
[1770598263101,1.2541187,2085.2,2084.2,0.95937686]
[1770598264015,1.19863834,2085.7,2084.4,0.95937686]
[1770598264387,1.25383128,2085.7,2084.4,0.95937686]
[1770598264714,0.05519294,2085.5,2084.4,0.95937686]
[1770598265392,0.05519294,2085.2,2084.4,0.95937686]
[1770598265587,3.349,2085.3,2084.4,0.95937686]
[1770598265894,1.19892576,2085.2,2084.5,1.19932837]
[1770598266411,4.54789765,2085.3,2084.6,0.95937686]
[1770598266613,3.349,2085.3,2084.6,0.95937686]
[1770598266806,4.5478705,2085.3,2084.6,0.95937686]
[1770598267600,4.60306344,2085.3,2084.6,0.95937686]
[1770598269411,0.05519294,2085.0,2084.1,0.001]
[1770598269806,0.76952722,2085.2,2084.1,2.15992383]
[1770598270008,4.5478705,2085.3,2084.5,2.15869406]
[1770598270324,4.5478705,2085.3,2084.6,0.95937686]
[1770598271920,0.05519294,2085.1,2084.2,0.95937686]
[1770598272117,4.5478705,2085.3,2084.3,1.19944345]
[1770598272327,4.5478705,2085.3,2084.4,0.95937686]
[1770598272831,4.5478705,2085.3,2084.8,0.001]
[1770598272832,0.002,2085.1,2084.8,0.001]
[1770598278741,0.05519294,2085.0,2084.5,0.001]
[1770598279042,7.17672016,2085.1,2084.5,0.001]
[1770598279242,6.50959294,2085.1,2084.5,0.001]
[1770598279742,1.2542337,2085.0,2084.5,0.001]
[1770598279932,1.19904076,2085.0,2084.5,0.001]
[1770598280127,6.352,2085.1,2084.5,0.99731241]
[1770598280830,0.002,2085.1,2084.5,0.99731241]
[1770598281361,3.351,2085.3,2084.5,0.99731241]
[1770598281362,0.002,2085.3,2084.6,0.99631241]
[1770598281536,0.002,2085.3,2084.7,0.99631241]
[1770598282755,0.05519294,2085.2,2084.5,0.99731241]
[1770598282933,0.05519294,2085.2,2084.5,2.19663519]
[1770598283329,0.002,2085.3,2084.5,2.19663519]
[1770598283927,0.002,2085.3,2084.6,0.99631241]
[1770598284429,0.002,2085.3,2084.1,0.99731241]
[1770598284430,0.05519294,2084.9,2084.1,0.99731241]
[1770598285359,3.40619294,2084.9,2084.1,0.99731241]
[1770598285755,1.19915579,2084.8,2084.1,0.001]
[1770598285951,0.05519294,2084.6,2084.1,0.001]
[1770598286653,0.05519294,2084.6,2084.5,0.001]
[1770598286849,0.05519294,2084.6,2084.1,0.001]
[1770598287049,1.19915579,2084.8,2084.1,0.001]
[1770598288861,1.19932837,2084.5,2084.1,0.001]
[1770598289153,1.19915579,2084.8,2084.1,0.001]
[1770598289367,4.55015579,2084.8,2084.1,0.99731241]
[1770598289549,1.19913932,2084.9,2084.1,0.99731241]
[1770598290564,1.20108341,2085.0,2084.1,0.99731241]
[1770598290757,0.002,2085.0,2084.3,0.99631241]
[1770598292643,0.05519294,2084.9,2084.3,0.99631241]
[1770598292844,0.05519294,2084.9,2084.1,2.1968681]
[1770598292845,1.19915579,2084.8,2084.1,2.1968681]
[1770598293360,1.19915579,2084.8,2084.2,2.19581236]
[1770598293566,1.19915579,2084.8,2084.3,0.99631241]
[1770598293738,1.19914291,2084.9,2084.3,2.19573828]
[1770598293938,4.552082,2085.0,2084.4,0.99631241]
[1770598294751,3.353,2085.0,2084.4,0.99631241]
[1770598295064,3.353,2085.0,2084.4,1.19934784]
[1770598295065,1.20104271,2085.0,2084.4,1.19934784]
[1770598295235,1.20104271,2085.0,2084.5,0.99631241]
[1770598295438,1.20104271,2085.0,2084.4,1.19934784]
[1770598295439,0.05519294,2084.9,2084.2,0.99631241]
[1770598295654,0.05519294,2084.9,2084.2,2.19580903]
[1770598295940,1.20104271,2085.0,2084.4,0.99631241]
[1770598296140,1.20104271,2085.0,2084.5,0.99631241]
[1770598296141,0.002,2085.0,2084.5,0.99631241]
[1770598297035,0.002,2085.0,2084.5,2.19560716]
[1770598297241,0.002,2085.0,2084.6,0.99631241]
[1770598297436,0.002,2085.2,2084.7,0.99631241]
[1770598299175,0.002,2085.0,2084.7,2.19552466]
[1770598299669,0.002,2085.0,2084.7,0.99631241]
[1770598303573,0.002,2085.0,2084.8,1.19915579]
[1770598303776,0.002,2085.0,2084.8,2.1954682]
[1770598304175,0.002,2085.0,2084.9,0.99631241]
[1770598304375,0.002,2085.3,2085.0,0.99631241]
[1770598305880,0.002,2085.3,2085.1,1.19898326]
[1770598306253,0.002,2085.3,2085.1,2.15288596]
[1770598306453,1.20041752,2086.1,2085.2,0.9539027]
[1770598306697,1.20041192,2086.1,2085.2,0.9539027]
[1770598307484,0.002,2086.1,2085.2,0.9539027]
[1770598307780,0.002,2086.1,2085.4,0.9539027]
[1770598308466,0.6,2085.9,2085.4,0.9539027]
[1770598308790,0.002,2086.1,2085.4,0.9539027]
[1770598310184,0.05519294,2085.9,2085.4,0.9539027]
[1770598310391,1.20040851,2086.1,2085.4,0.9539027]
[1770598311670,0.002,2085.9,2085.4,0.9539027]
[1770598312574,0.002,2085.9,2084.9,0.001]
[1770598312575,0.05519294,2085.7,2084.9,0.001]
[1770598313788,0.05519294,2085.4,2084.9,0.001]
[1770598313989,0.05519294,2085.7,2084.9,0.001]
[1770598314497,1.19869581,2085.6,2084.9,0.001]
[1770598315380,0.05519294,2085.4,2084.8,0.8949027]
[1770598316494,1.19869581,2085.6,2084.8,0.8949027]
[1770598317572,0.05519294,2085.4,2084.6,0.001]
[1770598317775,4.08112722,2085.3,2084.6,0.001]
[1770598318294,3.351,2085.3,2084.6,0.001]
[1770598318485,0.6,2085.1,2084.6,0.9549027]
[1770598319064,3.351,2085.5,2084.6,0.9549027]
[1770598320094,1.19869581,2085.6,2084.6,0.99788629]
[1770598320401,1.19869581,2085.6,2084.7,1.19921331]
[1770598320576,4.54966699,2085.7,2084.8,0.99688216]
[1770598321166,0.002,2085.9,2084.8,0.99688216]
[1770598321590,0.002,2085.9,2085.0,0.9539027]
[1770598321905,0.002,2085.9,2085.2,0.9539027]
[1770598322368,1.2005312,2085.9,2085.2,0.9539027]
[1770598322570,0.002,2085.9,2085.3,2.15277096]
[1770598323023,0.002,2085.9,2085.3,0.9539027]
[1770598323313,0.002,2085.9,2085.2,1.19890076]
[1770598323474,0.6,2085.7,2085.2,1.19891894]
[1770598323674,0.6,2085.7,2084.8,0.9539027]
[1770598323874,0.05519294,2085.6,2084.8,0.9539027]
[1770598324378,0.05519294,2085.5,2084.8,0.9539027]
[1770598324583,1.25400371,2085.4,2084.6,1.20024863]
[1770598324798,1.25400371,2085.4,2084.6,1.20024221]
[1770598325103,1.25400371,2085.4,2084.6,0.001]
[1770598325481,0.05519294,2085.1,2084.8,0.001]
[1770598325800,1.25400371,2085.4,2084.8,0.001]
[1770598326178,1.19881077,2085.4,2084.8,0.9549027]
[1770598326382,4.79706942,2085.5,2084.8,0.8949027]
[1770598326383,1.2007902,2085.5,2084.8,0.8949027]
[1770598327101,0.002,2085.5,2084.8,2.09403436]
[1770598327404,0.002,2085.5,2084.9,0.9539027]
[1770598329093,0.002,2085.5,2085.1,0.9539027]
[1770598329700,0.002,2085.9,2085.3,0.9539027]
[1770598331092,0.002,2085.9,2085.4,2.15271347]
[1770598331998,0.002,2085.9,2085.5,0.9539027]
[1770598333077,0.002,2085.9,2085.5,2.15261234]
[1770598333300,0.002,2085.9,2085.5,0.9539027]
[1770598333500,0.002,2085.9,2085.5,2.15265031]
[1770598336117,0.002,2085.9,2085.1,0.92124589]
[1770598336422,0.002,2085.9,2085.0,3.351]
[1770598336423,0.05519294,2085.8,2085.0,3.351]
[1770598336601,0.05519294,2085.8,2084.8,2.12037002]
[1770598336995,0.05519294,2085.8,2084.8,2.12037952]
[1770598337176,1.19863834,2085.7,2084.9,1.19909791]
[1770598337378,1.19863834,2085.7,2084.8,2.12035762]
[1770598337901,1.19863834,2085.7,2084.6,0.001]
[1770598337902,0.05519294,2085.5,2084.6,0.001]
[1770598338277,0.05519294,2085.2,2084.6,0.001]
[1770598338575,0.6,2085.3,2084.8,0.001]
[1770598338777,0.05519294,2085.2,2084.8,0.001]
[1770598338977,0.6,2085.3,2084.8,0.001]
[1770598339280,1.19892576,2085.2,2084.8,0.001]
[1770598339479,1.20066786,2085.7,2084.8,0.92224589]
[1770598339694,1.20064701,2085.7,2084.8,0.92224589]
[1770598339900,0.002,2085.7,2084.8,0.92224589]
[1770598340280,1.20064268,2085.7,2084.8,0.92224589]
[1770598340802,0.002,2085.7,2084.8,0.92224589]
[1770598341004,1.20063912,2085.7,2084.8,0.92224589]
[1770598341596,1.20063912,2085.7,2084.9,2.12034416]
[1770598343525,1.20063912,2085.7,2085.0,0.92124589]
[1770598344423,0.002,2085.7,2085.1,1.19898326]
[1770598344812,0.002,2085.7,2085.1,2.12022915]
[1770598345019,0.002,2085.9,2085.3,0.92124589]
[1770598345895,0.002,2086.1,2085.2,3.35]
[1770598346112,0.002,2086.7,2086.2,0.92124589]
[1770598346511,0.002,2086.7,2086.3,2.11953951]
[1770598347298,0.002,2086.7,2086.4,0.92124589]
[1770598348602,4.84542061,2087.6,2086.6,0.92124589]
[1770598350124,0.05519294,2087.3,2086.6,0.92124589]
[1770598350997,0.05519294,2087.3,2086.0,3.35]
[1770598350998,0.05519294,2087.2,2086.2,1.19830268]
[1770598351196,0.05519294,2087.2,2086.0,3.35]
[1770598351197,0.05519294,2086.9,2086.1,1.19835547]
[1770598351443,0.002,2086.5,2086.1,1.19835547]
[1770598352806,0.002,2086.5,2086.1,1.19840372]
[1770598353128,0.002,2086.7,2086.2,0.92124589]
[1770598354709,21.46581531,2087.5,2086.2,0.92124589]
[1770598354912,11.19581531,2087.5,2086.2,0.92124589]
[1770598355229,11.19581531,2087.5,2086.4,0.92124589]
[1770598355812,7.54760479,2087.5,2086.4,0.92124589]
[1770598356009,0.05519294,2087.2,2086.4,0.92124589]
[1770598356210,0.05519294,2087.2,2086.3,1.19829362]
[1770598357232,0.05519294,2086.9,2085.8,0.92124589]
[1770598357409,0.05519294,2086.9,2085.8,2.11977708]
[1770598357618,0.05519294,2086.9,2085.9,1.1985202]
[1770598358015,0.05519294,2086.6,2085.9,1.19849426]
[1770598358325,1.19783431,2087.1,2086.3,0.92124589]
[1770598358744,0.05519294,2086.9,2086.0,1.19842927]
[1770598358909,1.19783431,2087.1,2086.2,1.19834781]
[1770598359109,0.05519294,2086.9,2086.2,1.19834781]
[1770598359321,1.25317723,2086.9,2085.9,0.92124589]
[1770598359526,0.1024,2087.4,2086.1,0.92124589]
[1770598359527,1.19771954,2087.3,2086.1,0.92124589]
[1770598359832,1.19768976,2087.4,2086.3,0.92124589]
[1770598360041,7.60283499,2087.5,2086.4,0.92124589]
[1770598360404,7.54764205,2087.5,2086.4,0.92124589]
[1770598360605,0.002,2087.6,2086.8,0.92124589]
[1770598360918,0.2804,2087.8,2086.8,0.92124589]
[1770598360919,0.2804,2087.8,2087.2,0.92124589]
[1770598361317,0.2804,2087.8,2087.3,1.19771954]
[1770598361910,0.2804,2087.8,2087.3,2.11896543]
[1770598362219,0.2804,2087.8,2087.3,1.19771954]
[1770598362728,0.2804,2087.8,2087.4,0.92124589]
[1770598362922,0.2804,2087.8,2087.5,3.348]
[1770598363118,1e-08,2087.8,2087.5,4.26924589]
[1770598363306,0.05519294,2088.4,2087.5,3.348]
[1770598363513,1.05193109,2088.4,2087.4,1.19762018]
[1770598364118,0.002,2087.6,2087.4,1.19762018]
[1770598364437,0.002,2087.6,2087.3,1.19767433]
[1770598364737,0.002,2087.6,2087.2,1.19775018]
[1770598364915,0.002,2087.6,2087.4,1.19763454]
[1770598365234,0.002,2087.6,2087.3,1.19768465]
[1770598365617,0.002,2087.6,2087.1,4.79114144]
[1770598365812,0.002,2087.6,2087.2,1.19773808]
[1770598366243,0.002,2087.6,2087.3,1.19771858]
[1770598366941,0.002,2087.6,2087.2,1.19773446]
[1770598367844,0.002,2087.6,2086.9,9.06102726]
[1770598367845,0.002,2087.6,2087.0,1.19789171]
[1770598369145,0.002,2087.6,2086.7,4.79209541]
[1770598369348,0.002,2087.6,2086.8,1.19796698]
[1770598369550,0.99128599,2087.6,2086.7,1.19805793]
[1770598370047,1.19760479,2087.5,2086.7,1.19805793]
[1770598370622,0.05519294,2087.4,2086.6,4.54607665]
[1770598370945,2.18887504,2087.6,2086.6,4.54607665]
[1770598371649,0.05519294,2087.4,2086.6,4.54607665]
[1770598371822,2.18887504,2087.6,2086.6,4.54607665]
[1770598372020,1.19771954,2087.3,2086.6,4.54607665]
[1770598372715,1.19958526,2087.6,2086.6,4.54607665]
[1770598372920,1.19958526,2087.6,2086.6,5.45802569]
[1770598373119,0.002,2087.6,2086.6,5.45802569]
[1770598373549,0.002,2087.6,2086.7,0.91194904]
[1770598373849,0.002,2087.6,2086.8,0.91194904]
[1770598374053,0.002,2087.8,2087.0,0.91194904]
[1770598374457,0.002,2087.8,2087.2,0.91194904]
[1770598374628,1.52538701,2088.4,2087.4,0.91194904]
[1770598374822,0.32825639,2088.4,2087.4,0.91194904]
[1770598376044,0.32825639,2088.4,2087.5,2.10955383]
[1770598376223,0.32825639,2088.4,2087.6,0.91194904]
[1770598377153,1.1969767,2088.6,2087.6,0.91194904]
[1770598377352,1.33630706,2089.1,2088.1,0.91194904]
[1770598377552,1.33630706,2089.1,2087.6,10.17906508]
[1770598377553,1.33630706,2089.1,2088.2,3.347]
[1770598377754,1.33630706,2089.1,2087.8,0.91194904]
[1770598378050,0.002,2088.2,2087.9,4.54433224]
[1770598378248,0.98928599,2089.0,2087.9,1.19733224]
[1770598378566,0.002,2088.4,2087.9,1.19733224]
[1770598380153,0.002,2088.4,2087.2,1.19777513]
[1770598380154,1.04447893,2088.3,2087.2,1.19777513]
[1770598380359,0.05519294,2088.0,2086.9,8.13873557]
[1770598380528,0.98928599,2088.1,2087.1,1.19782719]
[1770598380928,1.04447893,2088.0,2086.9,1.19791219]
[1770598381164,1.04447893,2088.0,2086.9,1.19794824]
[1770598381341,1.04447893,2088.0,2086.8,9.52159033]
[1770598381932,1.19749006,2087.7,2086.8,9.5216111]
[1770598382141,4.78955193,2087.9,2086.8,9.5216111]
[1770598382369,4.7884703,2088.1,2086.9,4.727672]
[1770598382557,4.78762509,2088.1,2086.9,2.59472]
[1770598382735,4.7888494,2088.2,2087.0,0.91194904]
[1770598382932,4.7888494,2088.2,2087.1,3.347]
[1770598383133,1.19720333,2088.2,2087.1,3.347]
[1770598383540,1.19913172,2088.4,2087.2,0.91194904]
[1770598384357,0.002,2088.4,2087.3,1.19771954]
[1770598384564,1.04447893,2088.2,2087.1,4.54478583]
[1770598384765,1.04447893,2088.2,2087.2,1.19775917]
[1770598386973,4.78866192,2088.3,2087.2,1.19775917]
[1770598387175,1.04447893,2088.2,2086.8,8.32361857]
[1770598387455,0.05519294,2087.8,2086.9,1.1979158]
[1770598387675,1.04447893,2087.8,2086.8,9.5216242]
[1770598387845,1.04447893,2087.8,2086.8,8.32361857]
[1770598388243,1.04447893,2087.8,2086.8,9.52162173]
[1770598388447,1.04447893,2087.8,2086.8,8.32361857]
[1770598388643,1.04447893,2087.8,2086.8,9.52161795]
[1770598388848,1.19749006,2087.7,2086.8,8.32361857]
[1770598389261,2.18677605,2087.7,2086.8,8.32361857]
[1770598390183,2.18677605,2087.7,2086.8,9.52161625]
[1770598390475,0.98928599,2087.1,2086.8,6.8699035]
[1770598390687,0.1024,2087.4,2087.0,0.001]
[1770598390843,1.19771954,2087.3,2087.0,0.001]
[1770598391034,0.05519294,2087.1,2086.5,0.001]
[1770598392474,1.19771954,2087.3,2086.5,0.003]
[1770598395074,1.19771954,2087.3,2086.5,0.92300649]
[1770598395439,1.19771954,2087.3,2086.5,0.003]
[1770598395641,1.02826271,2087.1,2086.5,0.001]
[1770598396086,0.1024,2087.2,2086.5,0.003]
[1770598396258,1.19771954,2087.3,2086.5,0.003]
[1770598396753,0.05519294,2087.1,2086.5,0.001]
[1770598397151,1.19789171,2087.0,2086.1,0.001]
[1770598397355,0.05519294,2086.9,2086.1,0.001]
[1770598397578,1.25308465,2087.0,2086.2,0.002]
[1770598398681,0.05519294,2086.7,2086.2,0.002]
[1770598399177,2.23326237,2087.0,2086.2,0.002]
[1770598399178,1.19789171,2087.0,2086.2,0.002]
[1770598399957,0.05519294,2086.8,2086.2,0.002]
[1770598400457,1.19789171,2087.0,2086.2,0.002]
[1770598400668,0.05519294,2086.8,2086.2,0.002]
[1770598400970,1.19789171,2087.0,2086.2,0.002]
[1770598401851,4.79156684,2087.2,2086.2,0.96430657]
[1770598403852,4.79156684,2087.2,2086.2,1.20034733]
[1770598404250,4.79156684,2087.2,2086.2,0.002]
[1770598404573,0.05519294,2087.0,2086.4,0.001]
[1770598404759,4.79156684,2087.2,2086.4,0.001]
[1770598405076,0.05519294,2087.0,2086.5,0.002]
[1770598405854,1.19794911,2086.9,2086.5,0.002]
[1770598406054,1.19794911,2086.9,2086.6,0.002]
[1770598406262,1.19793603,2087.0,2086.6,0.002]
[1770598406776,1.25312897,2087.0,2086.6,0.002]
[1770598407391,1.25312897,2087.0,2086.4,0.001]
[1770598407551,1.25312897,2087.0,2086.5,0.002]
[1770598407552,1.19793603,2087.0,2086.5,0.002]
[1770598408363,4.79143273,2087.1,2086.5,0.002]
[1770598409278,0.05519294,2087.0,2086.5,0.002]
[1770598409578,4.79143273,2087.1,2086.5,0.002]
[1770598409776,0.05519294,2087.0,2086.5,0.002]
[1770598410383,1.19794911,2086.9,2086.5,0.002]
[1770598410880,0.05519294,2086.7,2086.4,0.001]
[1770598411265,0.05519294,2086.7,2086.1,0.001]
[1770598411452,0.05519294,2086.7,2086.2,0.002]
[1770598411855,3.348,2086.8,2086.2,0.002]
[1770598412185,3.348,2086.8,2086.3,0.002]
[1770598412363,1.19806392,2086.7,2086.2,0.002]
[1770598413281,1.25325686,2086.7,2086.2,0.002]
[1770598413778,1.19806392,2086.7,2086.2,0.002]
[1770598414279,1.25325686,2086.7,2086.2,0.002]
[1770598414856,4.54604821,2086.8,2086.2,0.002]
[1770598415166,4.54604821,2086.8,2086.2,0.96430657]
[1770598416181,4.60124115,2086.8,2086.2,0.002]
[1770598416585,4.54604821,2086.8,2086.1,0.001]
[1770598416779,4.54604821,2086.8,2086.2,0.002]
[1770598417179,4.54604821,2086.8,2086.4,0.001]
[1770598417494,0.002,2087.0,2086.4,0.96330657]
[1770598417781,0.002,2087.0,2086.5,0.002]
[1770598417988,0.002,2087.0,2086.5,0.96430657]
[1770598418363,0.002,2087.0,2086.5,0.002]
[1770598418887,0.05519294,2086.9,2086.5,0.002]
[1770598419089,0.05519294,2086.9,2086.4,0.001]
[1770598419287,0.05519294,2086.9,2086.4,0.003]